bitfinex/quotes_ETHUSD_20260106
["timestamp","ask_amount","ask_price","bid_price","bid_amount"]
[1767720746179,3.08008393,3246.7,3245.9,0.90238806]
[1767720747080,0.94682218,3246.9,3245.5,0.90238806]
[1767720747274,0.94682218,3246.9,3245.3,3.08136876]
[1767720747580,0.94582218,3246.7,3245.3,3.08136876]
[1767720747777,0.94582218,3246.5,3245.3,0.90238806]
[1767720748369,0.94582218,3246.5,3245.2,0.806]
[1767720751070,0.94582218,3246.3,3245.2,1.70838806]
[1767720751272,0.94582218,3246.3,3245.3,0.99954279]
[1767720751475,0.71064925,3246.2,3245.3,0.99954279]
[1767720752396,3.08014776,3246.6,3245.3,0.99954279]
[1767720752698,0.001,3246.9,3245.3,0.99954279]
[1767720752699,6.15991128,3246.8,3245.3,0.99954279]
[1767720753068,0.001,3246.9,3245.5,0.99954279]
[1767720753671,0.001,3246.9,3245.5,1.00154279]
[1767720753874,0.001,3246.9,3245.7,0.99954279]
[1767720753875,0.001,3246.4,3245.7,0.99954279]
[1767720754213,0.001,3246.9,3246.3,0.99954279]
[1767720755070,0.001,3246.9,3246.4,3.88633514]
[1767720755282,0.001,3246.9,3246.5,0.99954279]
[1767720757609,0.001,3246.9,3245.8,0.99954279]
[1767720757774,0.001,3246.9,3245.8,4.28278485]
[1767720758108,0.001,3246.9,3245.8,5.0888409]
[1767720758269,0.001,3246.9,3245.9,0.99954279]
[1767720758476,0.001,3246.9,3245.8,1.00840824]
[1767720758477,0.001,3246.9,3246.3,0.99954279]
[1767720759977,0.001,3246.9,3245.9,0.99954279]
[1767720760478,0.001,3246.9,3246.0,1.20033789]
[1767720762213,0.001,3246.9,3246.0,4.28105]
[1767720762911,0.001,3246.9,3246.0,1.20033789]
[1767720763608,0.001,3246.9,3246.0,4.28104771]
[1767720764520,0.001,3246.9,3246.1,0.99954279]
[1767720764683,0.001,3246.9,3246.2,0.99954279]
[1767720765592,0.001,3246.9,3246.4,0.99954279]
[1767720766613,0.001,3246.9,3246.5,3.08024025]
[1767720766614,0.002,3246.6,3246.5,3.08024025]
[1767720766810,0.002,3246.6,3246.5,0.99954279]
[1767720767402,0.002,3246.6,3246.3,0.001]
[1767720769428,0.002,3246.6,3246.4,0.99954279]
[1767720771514,0.002,3246.6,3246.4,4.07983198]
[1767720773306,6.15858352,3247.5,3246.5,0.99954279]
[1767720773307,3.07929176,3247.5,3246.5,0.99954279]
[1767720773488,3.07921516,3247.6,3246.6,4.07968817]
[1767720773684,0.90173287,3247.5,3246.3,0.38974847]
[1767720773888,0.90173287,3247.5,3246.4,0.806]
[1767720774115,0.90173287,3247.5,3246.3,0.001]
[1767720775522,0.90173287,3247.3,3246.3,0.001]
[1767720776322,6.15877316,3247.4,3246.3,1.00054279]
[1767720778015,6.15858352,3247.5,3246.4,3.08033514]
[1767720778229,0.70603164,3247.4,3246.4,4.07174119]
[1767720778403,0.70603164,3247.4,3246.4,0.99140605]
[1767720779414,0.002,3247.2,3246.4,0.99140605]
[1767720780927,0.002,3247.2,3246.4,4.07172604]
[1767720781223,0.002,3247.2,3246.4,0.99140605]
[1767720781422,0.002,3247.2,3246.4,4.07172499]
[1767720781628,0.002,3247.2,3246.5,0.92083601]
[1767720781920,0.002,3247.5,3246.9,0.92083601]
[1767720782099,0.002,3247.5,3246.6,4.00098139]
[1767720782300,0.002,3247.5,3246.7,0.806]
[1767720782618,0.002,3247.5,3246.8,0.92083601]
[1767720783127,0.97933232,3247.5,3246.4,0.806]
[1767720783321,0.97933232,3247.5,3246.4,1.28682062]
[1767720783491,0.97933232,3247.5,3246.4,1.40165663]
[1767720784126,3.07938658,3247.4,3246.5,3.08023742]
[1767720784301,3.07938658,3247.4,3246.5,4.00107343]
[1767720784623,0.002,3247.5,3246.6,0.92083601]
[1767720784795,0.002,3247.5,3246.8,0.92083601]
[1767720784995,0.002,3247.5,3246.9,0.92083601]
[1767720786221,0.002,3247.5,3247.0,4.00060194]
[1767720786395,0.002,3247.5,3247.1,0.92083601]
[1767720786804,0.002,3248.0,3247.4,0.92083601]
[1767720787205,0.25038294,3248.6,3247.6,0.92083601]
[1767720787732,0.25038294,3248.6,3247.8,0.92083601]
[1767720787919,3.32863632,3248.6,3247.8,0.92083601]
[1767720788122,0.25038294,3248.6,3247.8,0.92083601]
[1767720788327,0.25038294,3248.6,3248.0,0.92083601]
[1767720788650,3.32866206,3248.6,3247.7,0.1726836]
[1767720788820,3.32866206,3248.6,3247.5,0.92083601]
[1767720788821,0.33286621,3248.5,3247.5,0.92083601]
[1767720789140,0.97733232,3248.4,3247.5,3.07928948]
[1767720789308,0.97733232,3248.4,3247.4,3.07935003]
[1767720789507,0.33286621,3248.5,3247.5,4.00011335]
[1767720789705,0.33286621,3248.5,3247.6,3.07919487]
[1767720790108,0.33286621,3248.5,3247.6,3.07919061]
[1767720790607,3.07843861,3248.4,3247.5,4.65868683]
[1767720790809,6.15687722,3248.4,3247.5,1.57940014]
[1767720791227,3.07843861,3248.4,3247.5,4.65863213]
[1767720792108,3.07843861,3248.4,3247.5,1.57940014]
[1767720792436,3.75244414,3248.4,3247.7,0.001]
[1767720792645,0.97733232,3248.3,3247.7,0.001]
[1767720792942,0.97733232,3248.1,3246.8,0.92083601]
[1767720793103,0.97733232,3248.1,3246.5,0.92083601]
[1767720793309,0.97733232,3247.9,3246.7,3.08001054]
[1767720793510,0.97733232,3247.9,3246.6,4.17362356]
[1767720793716,0.97733232,3247.9,3246.6,4.17364753]
[1767720793906,0.97733232,3247.9,3246.7,3.08004572]
[1767720794321,0.97733232,3247.9,3246.8,3.07994368]
[1767720794747,7.13534696,3247.8,3246.7,3.08000934]
[1767720794940,0.7135347,3247.7,3246.7,3.08000934]
[1767720795554,0.7135347,3247.7,3246.6,4.17362064]
[1767720795751,0.7135347,3247.7,3246.6,1.09351961]
[1767720795752,0.97733232,3247.6,3246.6,1.09351961]
[1767720795919,0.97733232,3247.6,3246.6,0.92083601]
[1767720796930,3.07929176,3247.5,3246.6,0.92083601]
[1767720797321,6.15858352,3247.5,3246.6,0.92083601]
[1767720798362,7.13591584,3247.5,3246.3,0.92183601]
[1767720798566,0.97733232,3247.4,3246.3,0.92183601]
[1767720798725,0.71359158,3247.3,3246.3,0.92183601]
[1767720798925,3.07957625,3247.2,3246.3,0.92183601]
[1767720799143,3.07957625,3247.2,3246.4,0.92083601]
[1767720799429,3.79311556,3247.3,3246.4,0.92083601]
[1767720800364,0.71359158,3247.3,3246.4,0.92083601]
[1767720800554,3.07932046,3247.5,3246.5,0.92083601]
[1767720800865,6.15864092,3247.5,3246.5,0.92083601]
[1767720801154,7.1357262,3247.6,3246.5,4.00106297]
[1767720801932,7.1357262,3247.6,3246.6,0.92083601]
[1767720803339,7.1357262,3247.6,3246.6,0.91883602]
[1767720803538,0.86542609,3247.5,3246.6,0.91883602]
[1767720804663,0.86542609,3247.5,3246.8,0.001]
[1767720805654,3.07938658,3247.4,3246.8,0.001]
[1767720806361,3.9447542,3247.5,3246.8,0.001]
[1767720807434,7.02408231,3247.5,3246.8,0.001]
[1767720807659,0.80014146,3247.4,3246.8,0.001]
[1767720808364,0.80014146,3247.4,3246.6,0.91883602]
[1767720809862,3.07948141,3247.3,3246.6,0.91883602]
[1767720810160,0.97791349,3247.1,3246.3,0.001]
[1767720810360,0.805,3247.2,3246.3,0.92183601]
[1767720811065,3.07942332,3247.4,3246.6,0.92083601]
[1767720811362,3.07942332,3247.4,3246.7,0.92083601]
[1767720811940,3.07911845,3247.7,3246.7,0.92083601]
[1767720812139,6.1582369,3247.7,3246.7,0.92083601]
[1767720812363,3.07911845,3247.7,3246.8,0.93675978]
[1767720815265,6.1582369,3247.7,3246.8,0.93675978]
[1767720815566,6.94482731,3247.7,3246.8,0.93675978]
[1767720816542,0.78659041,3247.7,3246.9,0.93675978]
[1767720816868,3.07904822,3247.8,3246.9,0.93675978]
[1767720817170,0.90266722,3247.7,3246.8,0.001]
[1767720817742,0.90266722,3247.7,3246.3,0.93775978]
[1767720817969,0.91195342,3247.7,3246.3,0.93775978]
[1767720818278,0.91195342,3247.7,3246.3,4.01818133]
[1767720818455,0.90266722,3247.5,3246.4,0.93675978]
[1767720818775,7.86644038,3247.4,3246.4,0.93675978]
[1767720818978,0.90266722,3247.3,3246.4,0.93675978]
[1767720819687,3.07931513,3247.5,3246.5,0.93675978]
[1767720820670,6.15820426,3247.7,3246.6,0.93675978]
[1767720820833,0.69632043,3247.6,3246.6,0.93675978]
[1767720822242,3.88404178,3247.8,3246.6,0.93675978]
[1767720822635,3.88404178,3247.8,3246.8,0.93675978]
[1767720825072,3.88404178,3247.8,3247.0,0.93675978]
[1767720825776,0.90266722,3248.5,3247.0,0.93675978]
[1767720825954,6.9616877,3248.5,3247.0,0.93675978]
[1767720826155,4.60547953,3248.5,3247.2,0.93675978]
[1767720826650,0.25038294,3248.6,3247.2,0.93675978]
[1767720827179,0.25038294,3248.6,3247.4,0.93675978]
[1767720827385,0.25038294,3248.6,3247.6,0.93675978]
[1767720827752,3.07817231,3248.7,3247.6,0.93675978]
[1767720827753,6.15640302,3248.7,3247.6,0.93675978]
[1767720827953,0.90266722,3248.6,3247.7,0.93675978]
[1767720828156,1.60877424,3248.6,3247.7,0.93675978]
[1767720828368,0.002,3247.8,3247.7,0.93675978]
[1767720830682,0.002,3247.8,3247.7,4.01586191]
[1767720830988,0.002,3247.8,3247.4,0.93675978]
[1767720831857,0.002,3247.8,3247.2,3.07953429]
[1767720832057,0.002,3247.8,3247.3,0.93675978]
[1767720832270,0.002,3247.8,3247.3,4.01623529]
[1767720833188,0.002,3247.8,3247.3,0.93675978]
[1767720833363,0.002,3247.8,3247.4,0.93675978]
[1767720835286,0.002,3247.8,3247.5,3.07929176]
[1767720835517,0.002,3247.8,3247.6,0.93675978]
[1767720835985,0.002,3247.8,3247.5,0.40160515]
[1767720836161,0.002,3247.8,3247.2,3.07955743]
[1767720836359,0.002,3247.8,3247.2,4.01631721]
[1767720836557,0.002,3247.8,3247.3,4.0162348]
[1767720836769,0.002,3247.8,3247.3,0.93675978]
[1767720837105,0.002,3247.8,3247.1,4.01637936]
[1767720838706,0.002,3247.8,3247.1,0.93675978]
[1767720838911,0.31008177,3247.8,3246.9,3.07982807]
[1767720839081,0.31008177,3247.8,3246.9,4.01773632]
[1767720839800,0.91855145,3247.6,3246.6,0.93790825]
[1767720840293,0.91855145,3247.6,3246.3,0.001]
[1767720840294,0.002,3247.5,3246.7,4.01793461]
[1767720840509,0.002,3247.5,3247.0,0.93790825]
[1767720841071,0.92055145,3247.5,3246.4,4.01816759]
[1767720841408,0.92055145,3247.5,3246.4,4.42008435]
[1767720841591,0.92055145,3247.5,3246.4,0.93790825]
[1767720841800,0.97927283,3247.3,3246.4,0.93790825]
[1767720842474,0.97927283,3247.3,3246.4,4.01820972]
[1767720843497,3.07938658,3247.4,3246.5,0.90399972]
[1767720844408,3.07938658,3247.4,3246.5,3.98416912]
[1767720844616,0.69656929,3247.3,3246.6,0.90399972]
[1767720845822,0.002,3247.5,3246.6,0.90399972]
[1767720846586,0.002,3247.5,3246.8,0.90399972]
[1767720848980,0.002,3247.5,3246.9,0.90399972]
[1767720849583,0.002,3247.8,3247.4,0.90399972]
[1767720851183,0.002,3247.8,3247.5,0.90399972]
[1767720851512,0.002,3247.8,3247.6,0.90399972]
[1767720853084,0.002,3247.8,3247.5,0.70627623]
[1767720853308,0.002,3247.8,3247.3,0.90399972]
[1767720853510,0.002,3247.8,3247.5,0.90399972]
[1767720853816,0.002,3247.8,3247.5,3.07929138]
[1767720854705,0.002,3247.8,3247.4,3.07935205]
[1767720855009,0.002,3247.8,3247.5,3.07928685]
[1767720855214,0.002,3247.8,3247.3,3.07947729]
[1767720855525,0.002,3247.8,3247.4,0.70630177]
[1767720856103,0.002,3247.8,3247.5,0.90399972]
[1767720856907,0.002,3247.8,3247.4,0.70630177]
[1767720857296,0.002,3247.8,3247.5,3.07929176]
[1767720858109,0.002,3247.8,3247.5,3.98329148]
[1767720858316,0.002,3247.8,3247.6,1.37295905]
[1767720859202,0.002,3247.8,3247.7,0.90399972]
[1767720861521,0.002,3247.8,3247.7,3.98310185]
[1767720861815,0.002,3247.8,3247.7,0.90399972]
[1767720864427,0.002,3247.8,3247.7,3.98310185]
[1767720864628,0.002,3247.8,3247.7,4.42830797]
[1767720865134,4.05754948,3248.6,3247.8,0.90399972]
[1767720865306,4.05937649,3248.8,3247.8,0.90399972]
[1767720865498,3.08006226,3248.8,3247.8,0.90399972]
[1767720865697,0.002,3248.8,3248.0,0.90399972]
[1767720865925,3.08007424,3248.8,3248.0,0.90399972]
[1767720866130,0.002,3248.8,3248.0,0.90399972]
[1767720866625,0.002,3248.8,3248.2,0.90399972]
[1767720867398,0.002,3248.8,3248.1,6.96344588]
[1767720867399,0.98127283,3248.8,3248.1,3.07872294]
[1767720867597,0.98127283,3248.8,3248.2,0.30787229]
[1767720867836,0.002,3248.8,3248.2,0.30787229]
[1767720868126,0.002,3248.8,3248.2,1.21187201]
[1767720868330,0.002,3248.8,3248.3,0.90399972]
[1767720872324,0.92370131,3248.8,3248.0,0.9616841]
[1767720872525,0.92370131,3248.8,3248.0,1.7676841]
[1767720872830,0.002,3248.8,3248.2,0.9616841]
[1767720873331,3.08006526,3248.8,3248.2,0.9616841]
[1767720873534,0.71016425,3248.8,3248.2,0.9616841]
[1767720875425,0.71016425,3248.8,3248.2,4.04031087]
[1767720875631,0.002,3248.8,3248.2,0.9616841]
[1767720876016,0.002,3248.5,3248.2,0.9616841]
[1767720878414,0.002,3248.5,3248.2,0.806]
[1767720878613,0.002,3248.5,3248.3,0.9616841]
[1767720884446,0.002,3248.5,3248.2,0.806]
[1767720885033,0.002,3248.5,3248.2,1.7676841]
[1767720885219,0.002,3248.5,3248.2,2.25233371]
[1767720885743,0.002,3248.5,3248.2,1.7676841]
[1767720886114,0.002,3248.5,3248.1,0.806]
[1767720886842,0.92370131,3248.5,3248.1,0.806]
[1767720887434,0.92370131,3248.5,3247.4,4.8616841]
[1767720887634,0.92370131,3248.5,3247.4,3.9]
[1767720887635,0.92170131,3248.4,3247.4,3.9]
[1767720887953,0.002,3248.2,3247.5,0.806]
[1767720888445,0.92370131,3248.2,3247.5,0.806]
[1767720889438,0.92170131,3248.0,3247.2,0.9616841]
[1767720889711,0.92170131,3248.0,3247.4,0.806]
[1767720890123,0.92170131,3248.0,3247.0,0.9616841]
[1767720890124,0.92170131,3247.9,3247.0,0.9616841]
[1767720890550,0.92170131,3247.9,3246.9,0.806]
[1767720891767,0.92170131,3247.7,3246.9,0.806]
[1767720892127,0.92170131,3247.7,3247.0,0.9616841]
[1767720892317,0.40007086,3247.6,3247.0,0.9616841]
[1767720893027,1.32177217,3247.6,3246.9,0.806]
[1767720893216,0.40007086,3247.6,3246.9,1.7676841]
[1767720893853,0.40007086,3247.6,3247.0,0.9616841]
[1767720894347,3.47910366,3248.0,3247.0,0.9616841]
[1767720897352,6.5579649,3248.0,3247.0,0.9616841]
[1767720897522,0.92170131,3247.9,3247.0,0.9616841]
[1767720898422,0.92170131,3247.9,3247.1,1.7676841]
[1767720899118,0.92170131,3247.9,3246.7,0.9616841]
[1767720899324,0.92170131,3247.9,3246.3,0.001]
[1767720899325,0.4400805,3247.8,3246.9,0.9616841]
[1767720899740,0.002,3247.7,3246.9,0.9616841]
[1767720900255,0.002,3247.7,3247.0,0.9616841]
[1767720900433,0.002,3247.7,3247.2,0.9616841]
[1767720900752,0.002,3247.7,3247.1,0.71213896]
[1767720900753,0.002,3247.7,3247.3,1.7676841]
[1767720901347,0.002,3247.7,3247.3,0.806]
[1767720901846,0.002,3247.7,3246.5,4.05521105]
[1767720901847,0.93993117,3247.5,3246.5,4.05521105]
[1767720902049,0.93993117,3247.5,3246.8,0.97500834]
[1767720902050,0.71002971,3247.5,3246.8,0.97500834]
[1767720902357,0.002,3247.7,3246.8,0.97500834]
[1767720903936,0.002,3247.7,3247.0,0.95282577]
[1767720904145,0.002,3247.7,3247.1,1.75882577]
[1767720905665,0.002,3247.7,3247.1,0.806]
[1767720905966,0.002,3247.7,3247.1,1.75882577]
[1767720907766,0.002,3247.7,3247.2,0.95282577]
[1767720907971,0.002,3247.7,3247.1,0.806]
[1767720908162,0.31009171,3247.7,3247.1,1.75882577]
[1767720909069,0.002,3248.0,3247.4,0.95282577]
[1767720909767,0.807,3248.5,3247.4,0.95282577]
[1767720909768,0.002,3248.5,3247.6,0.95282577]
[1767720910067,0.002,3248.5,3247.8,0.95282577]
[1767720911145,0.002,3248.5,3248.0,0.95282577]
[1767720911346,0.002,3249.0,3248.6,0.95282577]
[1767720911651,0.002,3249.0,3248.7,0.95282577]
[1767720913558,0.002,3249.0,3248.8,0.95282577]
[1767720914742,3.07911243,3249.8,3249.1,0.95282577]
[1767720914947,0.1603827,3250.2,3249.2,0.95282577]
[1767720914948,3.0768284,3250.1,3249.2,0.95282577]
[1767720915179,0.32372111,3250.0,3249.2,0.95282577]
[1767720915370,3.40066214,3250.0,3249.2,0.95282577]
[1767720915871,4.39209485,3250.0,3249.2,0.95282577]
[1767720916748,3.40066214,3250.0,3249.2,0.95282577]
[1767720918457,0.32372111,3250.0,3249.2,0.95282577]
[1767720918658,0.16038164,3250.6,3249.3,0.95282577]
[1767720918856,0.16038164,3250.6,3249.5,0.95282577]
[1767720919056,0.99143271,3250.9,3249.8,0.95282577]
[1767720919454,3.075882,3251.1,3249.8,0.95282577]
[1767720919654,6.151764,3251.1,3249.8,0.95282577]
[1767720919856,0.79481967,3251.0,3249.8,0.95282577]
[1767720920374,0.99143271,3250.7,3249.4,1.75882577]
[1767720920676,0.99143271,3250.6,3249.5,0.95282577]
[1767720920878,0.99143271,3250.9,3249.6,0.95282577]
[1767720921070,0.6674477,3250.8,3249.7,0.95282577]
[1767720921663,3.07626049,3250.7,3249.7,0.95282577]
[1767720922655,0.6674477,3250.8,3249.8,0.95282577]
[1767720922964,3.08494593,3251.4,3249.7,3.07719966]
[1767720922965,3.075882,3251.1,3250.0,0.95282577]
[1767720923360,0.99143271,3251.0,3250.0,0.95282577]
[1767720923562,0.99143271,3250.8,3249.4,0.95282577]
[1767720923766,0.99143271,3250.8,3249.6,0.806]
[1767720924373,0.99143271,3250.8,3249.5,0.806]
[1767720924683,0.99143271,3250.6,3249.5,0.806]
[1767720925658,0.99143271,3250.4,3249.5,0.806]
[1767720925867,0.002,3250.4,3249.6,0.95282577]
[1767720927069,0.99343271,3250.4,3249.7,0.806]
[1767720927381,0.002,3250.4,3249.7,0.806]
[1767720927565,0.30983574,3250.4,3249.7,0.806]
[1767720927769,0.30983574,3250.4,3248.2,0.96211197]
[1767720927770,0.99143271,3250.3,3248.2,0.96211197]
[1767720928079,0.99143271,3250.3,3249.1,0.95282577]
[1767720928283,0.99143271,3250.3,3248.9,3.07792696]
[1767720928284,0.99143271,3250.3,3248.8,0.95282577]
[1767720928501,0.99143271,3250.1,3249.2,0.806]
[1767720929963,0.99143271,3250.1,3249.2,3.88367182]
[1767720930165,0.002,3250.4,3249.3,0.95282577]
[1767720930873,3.07855559,3250.4,3249.3,0.95282577]
[1767720931873,0.002,3250.4,3249.4,0.97103229]
[1767720932086,0.91439125,3250.4,3249.4,0.97103229]
[1767720932286,0.91439125,3250.4,3249.2,0.806]
[1767720932487,0.91439125,3250.4,3249.1,1.77703229]
[1767720932782,0.91439125,3250.4,3249.2,0.97103229]
[1767720933782,0.91439125,3250.4,3249.1,0.806]
[1767720933987,7.06566939,3250.3,3249.0,4.04890119]
[1767720934186,0.70676694,3250.2,3249.1,0.806]
[1767720934388,1.61915819,3250.2,3249.1,0.806]
[1767720935182,0.91239125,3250.1,3248.6,0.97103229]
[1767720935483,0.91239125,3250.0,3248.3,1.77703229]
[1767720935681,1.07430707,3250.0,3248.5,0.97103229]
[1767720935855,0.91239125,3249.8,3248.6,0.97103229]
[1767720936056,3.07720712,3249.7,3248.6,0.97103229]
[1767720936384,0.39895984,3249.6,3248.6,0.97103229]
[1767720936982,0.91239125,3249.5,3248.2,4.04961704]
[1767720937184,0.91239125,3249.5,3248.3,0.806]
[1767720937487,0.91239125,3249.5,3248.4,0.806]
[1767720938197,0.91239125,3249.3,3248.4,0.806]
[1767720938364,0.70673737,3249.2,3248.4,0.80400001]
[1767720938559,1.61912862,3249.2,3247.9,0.97103229]
[1767720938792,1.61912862,3249.2,3248.0,0.806]
[1767720939086,1.61912862,3249.2,3247.9,0.97103229]
[1767720939286,0.91239125,3249.1,3248.6,0.001]
[1767720939488,0.91239125,3248.9,3247.6,0.97103229]
[1767720939790,0.91239125,3248.9,3247.6,1.77703229]
[1767720939994,0.91239125,3248.9,3247.7,0.806]
[1767720940190,0.91239125,3248.7,3247.3,0.97103229]
[1767720940363,0.91239125,3248.7,3247.2,0.806]
[1767720940570,0.91239125,3248.5,3247.3,4.05043074]
[1767720940973,0.91239125,3248.5,3247.3,0.97103229]
[1767720941896,0.91239125,3248.5,3247.2,0.806]
[1767720942204,0.91239125,3248.5,3247.3,0.97103229]
[1767720942369,3.07843861,3248.4,3247.4,0.97103229]
[1767720942571,0.39908299,3248.3,3247.4,0.97103229]
[1767720942984,0.91239125,3248.2,3246.4,0.97103229]
[1767720943269,0.91239125,3248.2,3247.0,4.05072609]
[1767720943891,0.91239125,3248.2,3247.1,3.07966743]
[1767720944267,3.07862816,3248.2,3247.3,3.07947564]
[1767720944470,3.07862816,3248.2,3247.3,4.53615872]
[1767720944680,3.07862816,3248.2,3247.3,4.05050793]
[1767720946090,0.91239125,3248.9,3247.4,0.97103229]
[1767720946402,6.15611918,3248.8,3247.6,0.97103229]
[1767720947772,6.15611918,3248.8,3247.8,0.97103229]
[1767720947965,0.70685104,3248.7,3247.8,0.97103229]
[1767720948170,0.91239125,3249.7,3247.8,0.97103229]
[1767720948394,6.15479304,3249.5,3248.0,0.97103229]
[1767720948567,0.91239125,3249.4,3248.0,0.97103229]
[1767720948768,0.91239125,3249.4,3247.9,0.806]
[1767720948982,0.91239125,3249.4,3248.0,0.97103229]
[1767720949203,0.91239125,3249.4,3248.0,1.14873552]
[1767720949498,6.15479304,3249.5,3248.0,1.14873552]
[1767720950095,3.07739652,3249.5,3248.0,1.14873552]
[1767720950394,6.15384614,3250.0,3248.1,9.23616882]
[1767720950600,6.15384614,3250.0,3248.2,0.97103229]
[1767720950797,6.76923075,3250.0,3248.4,0.97103229]
[1767720951096,6.76923075,3250.0,3248.6,0.97103229]
[1767720951470,10.75854507,3250.0,3248.6,0.97103229]
[1767720951670,0.91239125,3249.9,3248.6,0.97103229]
[1767720951893,0.805,3249.8,3248.6,0.97103229]
[1767720952085,0.17173913,3249.7,3248.6,0.97103229]
[1767720952290,1.71739125,3249.9,3248.6,0.97103229]
[1767720952499,1.71739125,3249.9,3248.6,0.9690323]
[1767720952500,6.15422486,3249.8,3248.6,0.9690323]
[1767720953300,9.23133729,3249.8,3248.6,0.9690323]
[1767720953494,0.91239125,3249.7,3248.3,0.806]
[1767720953696,0.91239125,3249.5,3248.4,0.38845949]
[1767720953993,0.91239125,3249.5,3248.4,1.19445949]
[1767720954583,0.91239125,3249.3,3248.4,0.38845949]
[1767720954772,0.91239125,3249.3,3248.4,4.27288771]
[1767720955193,0.91239125,3249.3,3248.4,1.19445949]
[1767720955391,1.61912862,3249.3,3248.4,1.19445949]
[1767720956072,1.61912862,3249.3,3248.4,4.27289408]
[1767720956474,0.91239125,3249.3,3248.4,1.19445949]
[1767720956676,0.91239125,3249.1,3248.1,0.001]
[1767720956876,0.91239125,3249.1,3248.1,0.97203229]
[1767720957077,0.91239125,3249.1,3248.1,0.001]
[1767720957274,6.1553613,3249.2,3248.1,0.91825291]
[1767720957570,6.1553613,3249.2,3248.2,0.91725291]
[1767720957774,0.61553613,3249.1,3248.2,0.91725291]
[1767720957976,0.61553613,3249.1,3248.3,0.91725291]
[1767720958975,3.69334721,3249.1,3248.4,0.91725291]
[1767720959478,3.69333261,3249.1,3248.4,0.91725291]
[1767720960305,6.77112909,3249.1,3248.4,0.91725291]
[1767720960485,0.67711291,3249.0,3248.4,0.91725291]
[1767720960678,0.67711291,3249.0,3248.4,0.91525292]
[1767720961078,3.75498437,3249.0,3248.4,0.91525292]
[1767720961280,0.67711291,3249.0,3248.4,0.91525292]
[1767720961504,3.07784473,3249.1,3248.4,0.91525292]
[1767720961802,0.99841862,3249.9,3248.5,0.99248038]
[1767720962002,0.99841862,3250.2,3248.5,0.99248038]
[1767720962174,0.99841862,3250.5,3248.5,0.99248038]
[1767720962378,0.805,3250.5,3248.7,0.99248038]
[1767720962581,3.07663907,3250.3,3248.7,0.99248038]
[1767720962784,0.002,3249.6,3248.7,0.99248038]
[1767720963187,0.002,3249.6,3248.9,0.99248038]
[1767720963376,0.002,3249.6,3249.1,0.99248038]
[1767720963597,0.002,3249.6,3249.3,0.99248038]
[1767720965483,0.002,3249.6,3249.4,0.99248038]
[1767720965678,0.002,3249.6,3249.2,0.99248038]
[1767720967113,0.002,3249.6,3249.2,4.07012486]
[1767720967411,0.002,3249.6,3249.2,0.99248038]
[1767720967614,0.002,3249.6,3249.2,0.99048039]
[1767720968696,0.002,3249.6,3248.9,4.07038378]
[1767720969004,0.002,3249.9,3249.3,0.99248038]
[1767720969203,3.07811776,3250.7,3249.9,0.99248038]
[1767720969390,0.0017765,3250.7,3249.9,0.99248038]
[1767720970198,0.0017765,3250.7,3250.0,0.99248038]
[1767720970653,1.00019512,3250.7,3249.3,0.99248038]
[1767720971823,0.99841862,3250.5,3248.9,0.99248038]
[1767720972022,0.99841862,3250.3,3248.9,0.99248038]
[1767720972222,1.10330519,3250.2,3248.9,0.99248038]
[1767720972421,0.99841862,3250.1,3248.9,0.99248038]
[1767720972724,1.10330519,3250.2,3249.0,0.99248038]
[1767720973093,1.10330519,3250.2,3249.2,0.99248038]
[1767720974428,1.10330519,3250.2,3249.3,0.99248038]
[1767720974637,6.15289954,3250.5,3249.3,0.99248038]
[1767720975236,0.002,3250.4,3249.3,0.99248038]
[1767720977129,0.002,3250.4,3249.5,0.99248038]
[1767720977319,0.002,3250.4,3249.7,0.99248038]
[1767720979208,0.002,3250.4,3249.9,0.99248038]
[1767720979408,0.002,3250.4,3250.0,0.99248038]
[1767720979607,0.002,3250.4,3250.0,0.99048039]
[1767720982430,0.002,3250.4,3249.3,0.99248038]
[1767720982634,1.00041862,3250.4,3249.4,3.88341933]
[1767720982845,1.00041862,3250.4,3249.4,3.88343562]
[1767720983045,1.00041862,3250.4,3249.4,4.875916]
[1767720983211,1.00041862,3250.4,3249.5,3.0773875]
[1767720983543,4.0770162,3250.4,3249.6,3.07729036]
[1767720983945,7.15361378,3250.4,3249.4,2.59383724]
[1767720984148,4.0770162,3250.4,3249.4,2.59383724]
[1767720984347,3.07859758,3250.4,3249.5,4.06984072]
[1767720984516,0.002,3250.4,3249.6,1.86734802]
[1767720985015,3.07856344,3250.4,3249.6,1.86734802]
[1767720986241,0.002,3250.4,3249.6,1.86734802]
[1767720986413,1.00041862,3250.4,3249.2,4.07011209]
[1767720986613,1.00041862,3250.4,3249.3,4.07004949]
[1767720986842,1.00041862,3250.4,3249.9,0.001]
[1767720987038,0.002,3250.4,3249.9,0.001]
[1767720987348,0.002,3250.1,3249.9,0.001]
[1767720987647,0.99841862,3250.0,3248.1,0.001]
[1767720987835,0.99841862,3249.8,3248.3,0.99248038]
[1767720988152,0.99841862,3249.8,3248.4,3.07840503]
[1767720988845,0.99841862,3249.6,3248.4,3.07840503]
[1767720989061,0.99841862,3249.6,3248.3,4.07100544]
[1767720989339,0.99841862,3249.6,3248.1,3.88572167]
[1767720989340,0.99841862,3249.6,3248.1,0.807]
[1767720989548,0.99841862,3249.4,3248.1,0.807]
[1767720989757,0.99841862,3249.4,3247.4,0.99248038]
[1767720989936,1.00770482,3249.4,3247.4,3.07937928]
[1767720990453,1.00770482,3249.4,3247.2,3.07957486]
[1767720990454,0.99841862,3249.1,3247.2,3.07957486]
[1767720990660,0.99841862,3248.9,3247.3,3.07944733]
[1767720990956,0.805,3249.0,3247.1,4.87813004]
[1767720990957,0.99841862,3248.7,3247.4,0.30794473]
[1767720991129,0.99841862,3248.7,3247.4,1.30042511]
[1767720992131,0.99841862,3248.7,3247.5,0.92771095]
[1767720992835,3.07824909,3248.6,3247.5,4.0069352]
[1767720993042,0.96239383,3249.0,3247.7,0.92771095]
[1767720993355,3.07782795,3249.1,3247.9,0.92771095]
[1767720993651,3.07782795,3249.1,3248.1,0.92771095]
[1767720994355,6.1556559,3249.1,3248.1,0.92771095]
[1767720994528,3.07782795,3249.1,3248.1,0.92771095]
[1767720994939,6.15546354,3249.2,3248.2,0.806]
[1767720995155,3.07770446,3249.2,3248.2,0.806]
[1767720995453,3.78947047,3249.2,3248.2,1.73371095]
[1767720996057,3.07746033,3249.5,3248.3,0.92771095]
[1767720996264,7.11731449,3249.5,3248.3,0.92771095]